bitfinex/quotes_ETHUSD_20250824
["timestamp","ask_amount","ask_price","bid_price","bid_amount"]
[1756077337052,0.04,4804.4,4804.0,2.08159866]
[1756077337388,0.04,4804.4,4804.3,2.08146868]
[1756077337684,0.04,4804.4,4804.3,21.79227934]
[1756077338681,0.7846,4804.4,4804.3,7.1429]
[1756077338974,0.7846,4804.4,4804.0,3.696]
[1756077339351,0.4449,4804.3,4804.0,3.696]
[1756077339675,0.2997,4804.1,4803.8,6.696]
[1756077339840,0.2997,4804.1,4803.6,12.93271066]
[1756077340035,0.4449,4804.0,4803.6,0.4449]
[1756077340242,0.2997,4803.7,4803.5,3.0]
[1756077340441,0.4449,4803.6,4803.5,3.0]
[1756077340652,0.7446,4803.6,4803.2,3.4449]
[1756077340851,0.4449,4803.5,4803.2,0.4449]
[1756077341054,0.4449,4803.5,4803.1,3.694]
[1756077341249,0.4449,4803.4,4803.1,3.694]
[1756077341476,0.4449,4803.4,4803.1,4.1389]
[1756077341682,0.4449,4803.4,4803.2,2.08194536]
[1756077341970,0.4449,4803.4,4803.3,2.08190202]
[1756077342175,0.4449,4804.2,4803.3,3.692]
[1756077342343,0.4449,4804.2,4803.6,2.08176843]
[1756077342539,0.4449,4804.2,4803.4,2.08182131]
[1756077342740,0.4449,4804.2,4803.3,5.77390098]
[1756077342977,0.4449,4804.2,4803.3,3.692]
[1756077343192,0.3109,4803.4,4803.1,0.4449]
[1756077343485,0.4296,4803.3,4802.8,2.08211754]
[1756077343642,1.601,4804.0,4802.7,5.08215608]
[1756077343847,0.5897,4803.9,4802.7,5.08215608]
[1756077344190,0.4296,4803.9,4802.7,3.0]
[1756077344345,0.104,4803.5,4802.7,3.0]
[1756077344550,0.104,4803.5,4803.4,2.08185868]
[1756077344747,0.104,4803.5,4803.3,2.08189622]
[1756077344947,0.7405,4803.4,4803.1,5.77095382]
[1756077345147,0.3109,4803.4,4803.1,2.08195382]
[1756077345493,0.104,4803.2,4803.1,2.08195382]
[1756077346052,0.8445,4803.2,4802.9,2.08205231]
[1756077346251,0.4296,4803.1,4802.9,2.08205231]
[1756077346660,0.4296,4803.1,4803.0,2.08203206]
[1756077347060,0.5336,4803.1,4803.0,2.08203206]
[1756077347259,0.104,4803.1,4803.0,3.24735084]
[1756077347775,1.601,4804.2,4803.7,2.08170619]
[1756077347976,0.104,4803.5,4803.4,2.08184158]
[1756077349382,0.8445,4803.5,4802.7,3.686]
[1756077349617,0.8445,4803.5,4803.1,2.08198533]
[1756077349809,0.7405,4803.5,4803.1,2.08198533]
[1756077350106,0.104,4803.2,4803.1,2.08198533]
[1756077350483,0.8445,4803.2,4802.8,3.0]
[1756077350670,0.104,4802.9,4802.8,5.0821138]
[1756077350870,0.104,4802.9,4802.8,2.0821138]
[1756077351070,0.8445,4802.9,4802.8,2.0821138]
[1756077351307,0.8445,4802.9,4802.4,2.08225674]
[1756077351516,0.3109,4802.9,4802.6,2.08219248]
[1756077351718,0.4296,4802.8,4802.4,2.08224978]
[1756077351875,0.104,4802.5,4802.4,2.08224978]
[1756077353303,0.8445,4802.5,4802.4,2.08224978]
[1756077353506,0.8445,4802.5,4802.2,2.08237464]
[1756077353707,0.8445,4802.5,4800.9,0.001]
[1756077353708,0.4296,4802.4,4800.9,0.001]
[1756077354028,0.3109,4801.4,4801.0,0.626154]
[1756077354265,0.4149,4801.4,4800.9,0.001]
[1756077354431,0.4149,4801.4,4801.2,2.08280727]
[1756077354755,0.8445,4801.4,4801.1,2.12285239]
[1756077355461,0.8445,4801.4,4801.1,0.04]
[1756077356265,0.104,4801.4,4801.3,2.08376924]
[1756077356429,1.601,4802.4,4801.3,2.08376924]
[1756077356430,1.601,4802.4,4801.4,2.08272587]
[1756077356624,1.601,4802.4,4801.3,0.001]
[1756077356832,1.601,4802.4,4802.1,2.08242048]
[1756077357271,1.601,4802.4,4801.3,0.001]
[1756077357272,0.4296,4802.3,4801.5,2.08264932]
[1756077357551,0.4296,4802.3,4801.3,3.001]
[1756077357722,0.4296,4802.3,4801.4,0.56733125]
[1756077357922,0.4296,4802.3,4801.8,2.08255226]
[1756077358139,1.601,4802.4,4801.4,0.56733125]
[1756077358348,0.4296,4802.2,4801.4,0.56733125]
[1756077358534,0.4296,4802.2,4801.3,6.688]
[1756077358851,0.4296,4802.2,4801.8,2.08253763]
[1756077359336,1.601,4802.4,4801.7,2.08258997]
[1756077359529,0.4296,4802.1,4801.6,2.08263542]
[1756077359953,1.601,4802.4,4801.6,2.08263542]
[1756077359954,0.4296,4802.0,4801.6,2.08263542]
[1756077360161,1.601,4802.4,4801.7,2.08259359]
[1756077360451,0.4296,4802.3,4801.5,2.08267565]
[1756077360616,0.4296,4802.3,4801.3,6.688]
[1756077360819,0.4296,4802.3,4801.4,0.735415]
[1756077361014,0.4296,4802.3,4801.6,2.08261892]
[1756077361249,0.4296,4802.3,4802.0,2.08245812]
[1756077361450,0.4296,4802.3,4801.9,2.08250561]
[1756077361758,0.4296,4802.2,4801.7,2.08259077]
[1756077362051,0.4296,4802.2,4801.8,2.08254741]
[1756077362258,0.4296,4802.2,4801.6,2.08260834]
[1756077362765,0.3109,4801.7,4801.6,2.08260834]
[1756077363265,0.7405,4801.7,4801.3,0.001]
[1756077363555,0.44275,4801.6,4801.3,0.001]
[1756077363763,0.3109,4801.4,4801.3,0.001]
[1756077364258,0.7405,4801.4,4801.3,0.001]
[1756077365132,2.3415,4801.4,4801.3,0.001]
[1756077365971,3.0015,4801.4,4801.3,0.001]
[1756077366127,6.80585087,4801.4,4801.3,0.001]
[1756077366328,3.99489939,4801.0,4800.9,0.001]
[1756077366561,2.7431157,4800.6,4800.3,0.001]
[1756077366781,6.05407396,4800.4,4798.7,0.083531]
[1756077366932,0.66,4800.2,4798.3,0.104]
[1756077367126,0.9709,4799.8,4797.7,2.08431559]
[1756077367339,0.9709,4799.8,4797.9,0.083546]
[1756077367340,3.15832014,4799.8,4797.9,0.083546]
[1756077367537,1.5045,4799.8,4797.9,0.083546]
[1756077368034,1.5045,4799.8,4798.2,2.08410201]
[1756077368227,1.5045,4799.8,4798.1,2.12415455]
[1756077368420,1.5045,4799.8,4798.1,0.04]
[1756077370022,3.58792014,4799.8,4798.1,0.04]
[1756077370227,7.64792388,4799.8,4798.1,0.04]
[1756077371061,5.56450374,4799.8,4798.7,0.001]
[1756077371232,4.5315,4799.8,4798.7,0.001]
[1756077371427,3.791,4799.8,4798.7,0.001]
[1756077371829,0.104,4799.8,4798.7,0.001]
[1756077372035,3.791,4799.8,4798.7,0.1361]
[1756077372231,3.687,4800.0,4799.8,2.08341884]
[1756077372462,3.687,4800.0,4799.9,0.2161]
[1756077373249,3.791,4800.0,4799.9,0.2161]
[1756077373965,0.104,4800.0,4799.9,0.2161]
[1756077374179,0.4296,4801.2,4799.9,0.2161]
[1756077374180,3.688,4801.0,4799.9,0.44625575]
[1756077374335,3.688,4801.0,4799.9,1.20764975]
[1756077374735,3.688,4801.0,4800.6,2.08305829]
[1756077375342,3.688,4801.0,4800.4,2.08315047]
[1756077376746,3.688,4801.0,4800.5,2.08310638]
[1756077377358,3.688,4801.0,4800.3,2.08316387]
[1756077377556,3.688,4801.0,4799.9,3.85644975]
[1756077377758,0.4443,4800.9,4799.7,0.001]
[1756077379053,0.4443,4800.9,4799.7,2.08445265]
[1756077379588,3.687,4800.8,4799.9,2.08336156]
[1756077379789,3.687,4800.8,4799.7,0.001]
[1756077379790,3.687,4800.8,4799.8,12.93392623]
[1756077379960,3.687,4800.8,4799.9,4.59359262]
[1756077380450,3.687,4800.8,4800.0,2.08333333]
[1756077380646,0.3071,4800.1,4799.7,0.001]
[1756077380850,3.9941,4800.1,4799.7,0.001]
[1756077381099,0.4443,4800.0,4799.7,0.001]
[1756077381390,3.9941,4800.1,4799.7,0.001]
[1756077381391,3.687,4800.1,4799.7,0.001]
[1756077381589,1.602,4800.5,4799.7,0.001]
[1756077381749,1.602,4801.2,4800.0,0.2161]
[1756077381947,3.687,4801.1,4800.0,0.2161]
[1756077382150,3.687,4801.1,4800.5,2.08310329]
[1756077382556,1.602,4801.2,4801.0,0.2161]
[1756077382976,3.687,4801.5,4801.0,0.2161]
[1756077383497,3.687,4801.5,4801.2,2.08278839]
[1756077384186,3.687,4801.5,4800.9,2.08292346]
[1756077384187,0.104,4801.3,4800.5,12.93392623]
[1756077384360,0.104,4800.9,4800.6,1.37992522]
[1756077384568,0.104,4800.9,4800.8,2.29908616]
[1756077385355,1.602,4801.9,4801.7,2.0825931]
[1756077385556,3.726,4802.4,4801.5,2.08267975]
[1756077385878,0.104,4801.7,4801.6,2.08263912]
[1756077386084,0.104,4801.7,4801.6,2.29873912]
[1756077386469,0.04,4802.4,4802.3,2.08233554]
[1756077386786,0.144,4802.4,4802.3,2.29843554]
[1756077387486,0.144,4802.4,4802.3,0.2161]
[1756077387699,0.8954,4802.4,4801.5,2.08267386]
[1756077387904,0.104,4802.1,4801.8,2.08255195]
[1756077388084,0.104,4802.1,4801.5,2.03134363]
[1756077388255,0.4443,4802.1,4801.4,3.0]
[1756077388457,0.104,4801.5,4801.4,5.08268686]
[1756077389204,0.104,4801.5,4801.4,3.0]
[1756077389360,0.104,4801.5,4801.3,12.93392623]
[1756077389563,0.104,4801.5,4801.4,2.08272587]
[1756077389797,0.104,4801.5,4801.4,2.29882587]
[1756077389993,0.104,4801.5,4801.3,12.93392623]
[1756077390709,0.104,4801.5,4800.9,3.0]
[1756077391014,0.104,4801.5,4801.2,2.08277232]
[1756077391375,0.4443,4801.4,4800.9,3.0]
[1756077391576,0.104,4801.0,4800.8,2.08294652]
[1756077391791,0.104,4801.0,4800.9,2.08294278]
[1756077392268,0.104,4801.0,4800.8,2.08297384]
[1756077392474,0.104,4801.0,4800.9,2.08294278]
[1756077393304,0.04,4802.4,4800.9,2.08294278]
[1756077393305,0.04,4802.4,4800.9,5.91108857]
[1756077393598,0.04,4802.4,4802.1,2.08242175]
[1756077393798,0.04,4802.4,4801.6,12.93392623]
[1756077394304,0.04,4802.4,4802.2,2.08234615]
[1756077395191,0.04,4802.4,4802.3,0.2161]
[1756077395394,0.04,4802.4,4802.3,2.29843554]
[1756077395902,0.04,4802.4,4802.3,0.2161]
[1756077396205,0.04,4802.4,4801.6,12.93392623]
[1756077396522,0.7514,4802.3,4801.6,12.93392623]
[1756077396925,0.04,4802.4,4802.0,2.08245024]
[1756077397078,0.04,4802.4,4801.7,5.08259574]
[1756077397415,0.04,4802.4,4801.8,2.03134363]
[1756077397926,0.04,4802.4,4801.8,4.11388632]
[1756077398139,0.04,4802.4,4801.7,3.0]
[1756077398514,0.04,4802.4,4802.0,2.08242327]
[1756077398715,0.04,4802.4,4801.8,2.0825193]
[1756077398922,0.4443,4802.3,4801.7,3.0]
[1756077399216,0.4443,4802.3,4801.7,2.08257083]
[1756077399414,0.3071,4801.8,4801.1,0.626091]
[1756077399626,0.7514,4801.8,4801.1,3.0]
[1756077399945,0.7514,4801.8,4801.0,2.08289426]
[1756077400241,0.7514,4801.8,4801.4,2.08269955]
[1756077400443,1.19494,4801.8,4801.2,2.08281263]
[1756077400612,0.75064,4801.8,4801.4,2.08269793]
[1756077400941,0.75064,4801.8,4800.9,15.01683694]
[1756077400945,0.4443,4801.7,4800.9,15.01683694]
[1756077401339,0.4443,4801.7,4800.9,12.93392623]
[1756077401641,0.04,4802.4,4801.6,13.15002623]
[1756077401815,0.04,4802.4,4801.7,5.20627091]
[1756077402021,0.04,4802.4,4802.3,2.29843554]
[1756077402638,0.04,4802.4,4802.3,15.23236177]
[1756077402935,0.04,4802.4,4802.3,18.23236177]
[1756077404435,0.042,4802.4,4802.3,21.91536177]
[1756077405317,0.042,4802.4,4802.3,23.9467054]
[1756077405710,0.106,4802.9,4802.3,24.0818054]
[1756077405906,0.042,4803.4,4802.4,3.0]
[1756077406217,0.042,4803.4,4803.3,15.23192825]
[1756077406418,0.042,4803.4,4803.3,18.91392825]
[1756077406613,0.042,4803.4,4803.3,20.82667117]
[1756077407116,0.7989,4803.4,4803.0,5.76399444]
[1756077407333,0.104,4803.2,4803.0,5.08199444]
[1756077407510,0.104,4803.2,4803.0,2.08199444]
[1756077407715,0.7569,4803.1,4802.9,2.08205918]
[1756077407946,0.4474,4803.0,4802.9,2.08205918]
[1756077408449,0.7569,4803.0,4802.6,3.0]
[1756077408659,0.5514,4802.9,4802.6,3.0]
[1756077408950,0.104,4802.9,4802.8,2.08211876]
[1756077409145,0.104,4802.9,4802.8,2.29821876]
[1756077409452,0.104,4802.9,4802.8,4.32956239]
[1756077410150,0.104,4802.9,4802.8,2.08211876]
[1756077410714,0.4135,4802.9,4802.6,3.0]
[1756077410911,0.4474,4802.8,4802.2,3.0]
[1756077411115,0.104,4802.4,4801.9,3.681]
[1756077411345,0.104,4802.4,4802.3,2.08233554]
[1756077412149,0.104,4802.4,4802.1,5.08242227]
[1756077412150,0.104,4802.4,4802.1,2.08237955]
[1756077412339,0.104,4802.4,4802.0,2.08246563]
[1756077412658,0.104,4802.4,4802.2,2.08236574]
[1756077412838,0.104,4802.4,4802.2,5.76336574]
[1756077413044,0.104,4802.4,4802.3,2.08233554]
[1756077413751,0.104,4802.4,4802.3,6.166911]
[1756077415221,0.104,4802.4,4802.3,6.383011]
[1756077415730,0.4474,4803.3,4802.8,2.08208093]
[1756077415932,0.104,4802.9,4802.8,3.68]
[1756077416138,0.104,4802.9,4802.8,5.76211876]
[1756077417142,0.104,4802.9,4802.8,3.68]
[1756077417427,0.8609,4802.9,4802.8,3.68]
[1756077417620,0.8609,4802.9,4802.7,2.08216211]
[1756077417837,0.4135,4802.9,4802.7,2.08216211]
[1756077418148,0.4474,4802.8,4802.7,2.08216211]
[1756077418316,0.7569,4802.8,4802.7,2.08216211]
[1756077418521,0.104,4802.9,4802.7,1.30054454]
[1756077418721,0.104,4802.9,4802.8,3.68]
[1756077418921,0.104,4802.9,4802.8,3.8961]
[1756077419649,0.104,4803.2,4803.1,2.08196835]
[1756077419821,0.104,4803.2,4803.1,5.97806835]
[1756077420025,0.104,4803.2,4803.1,6.98431964]
[1756077421059,0.104,4803.2,4803.1,4.68625129]
[1756077421243,0.8609,4803.2,4803.1,5.76198871]
[1756077421947,0.8609,4803.2,4802.3,2.08233333]
[1756077421948,0.8609,4803.2,4800.0,3.00295574]
[1756077422153,0.104,4802.9,4802.4,5.76128106]
[1756077422357,0.042,4803.4,4802.4,5.76128106]
[1756077422358,0.042,4803.4,4802.8,2.08211501]
[1756077422577,0.104,4802.9,4802.8,3.679]
[1756077422728,0.042,4803.4,4803.3,2.08190202]
[1756077422924,0.042,4803.4,4803.3,18.91092825]
[1756077423231,0.042,4803.4,4803.3,21.91092825]
[1756077423963,0.042,4803.4,4803.3,21.69482825]
[1756077424163,0.042,4803.4,4803.3,21.91092825]
[1756077424367,0.042,4803.4,4803.3,23.94227188]
[1756077424930,0.002,4803.9,4803.8,2.08168533]
[1756077425160,0.002,4803.9,4803.8,5.97578533]
[1756077425368,0.002,4803.9,4803.8,8.97578533]
[1756077425581,0.002,4804.1,4804.0,2.08159866]
[1756077425732,0.04,4804.4,4804.3,2.08146868]
[1756077426077,0.04,4804.4,4804.3,8.97556868]
[1756077426274,0.04,4804.4,4804.3,8.75946868]
[1756077426430,0.7969,4804.4,4804.3,3.678]
[1756077427032,0.9009,4804.4,4804.1,3.678]
[1756077427557,0.144,4804.4,4804.3,2.08146868]
[1756077427733,0.04,4804.4,4804.3,8.75946868]
[1756077428772,0.144,4804.4,4804.3,8.75846868]
[1756077428973,0.04,4804.4,4804.3,8.97456868]
[1756077429641,0.04,4804.4,4804.3,9.07856868]
[1756077429843,0.04,4804.4,4804.3,10.01525924]
[1756077430044,0.04,4804.4,4804.3,10.23135924]
[1756077431369,0.002,4804.6,4804.5,2.08138203]
[1756077431664,0.002,4804.6,4804.5,21.90840826]
[1756077431867,0.002,4805.1,4805.0,2.08116545]
[1756077432034,0.04,4806.4,4805.3,2.08103552]
[1756077432236,0.104,4806.1,4805.3,21.90806175]
[1756077432476,0.104,4806.1,4805.3,22.01206175]
[1756077432835,0.002,4805.6,4805.3,22.01206175]
[1756077433142,0.002,4805.6,4805.5,2.08094891]
[1756077433348,0.04,4806.4,4806.3,2.08060254]
[1756077433549,0.04,4806.4,4806.3,5.75660254]
[1756077435052,0.04,4806.4,4806.3,10.78794617]
[1756077437753,0.7919,4806.4,4806.3,10.78794617]
[1756077438285,0.8959,4806.4,4805.7,2.08082179]
[1756077438583,0.4426,4806.3,4805.7,5.08082179]
[1756077438882,0.4426,4806.3,4805.0,0.104]
[1756077438883,0.4133,4805.8,4805.0,0.104]
[1756077439057,0.4133,4805.8,4804.4,1.6]
[1756077439058,0.104,4805.2,4805.1,3.674]
[1756077439258,0.4133,4805.2,4805.1,3.674]
[1756077439589,0.8559,4805.2,4804.6,0.104]
[1756077439761,0.4426,4805.1,4804.6,0.104]
[1756077439959,0.4426,4805.1,4803.5,3.68181236]
[1756077439960,0.3093,4804.7,4804.3,3.674]
[1756077440279,0.104,4804.7,4804.6,2.08133871]
[1756077440479,0.4426,4805.7,4804.7,2.08128926]
[1756077440680,0.104,4805.2,4804.9,2.0811711]
[1756077440885,0.104,4805.2,4805.0,3.674]
[1756077441253,0.104,4805.2,4805.0,5.75516545]
[1756077441454,0.104,4805.2,4805.0,3.674]
[1756077442082,0.7519,4805.1,4805.0,3.674]
[1756077442582,0.7519,4805.1,4804.5,2.08138021]
[1756077442782,0.104,4804.9,4804.7,3.0]
[1756077442989,0.7519,4804.8,4804.4,2.08141986]
[1756077443189,0.3093,4804.8,4804.5,3.0]
[1756077443492,0.4426,4804.7,4804.5,3.0]
[1756077443657,0.3093,4804.6,4804.5,3.0]
[1756077443867,0.7519,4804.6,4804.5,5.08138203]
[1756077444061,0.104,4804.9,4804.5,5.08136724]
[1756077444262,0.104,4804.9,4804.8,2.08125208]
[1756077444456,0.5466,4804.9,4804.6,3.673]
[1756077444768,0.5466,4804.9,4804.6,5.75433472]
[1756077445267,0.5466,4804.9,4804.8,2.08125208]
[1756077445468,0.104,4804.9,4804.8,2.08125208]
[1756077445788,0.8559,4804.9,4804.6,3.673]
[1756077445988,0.4426,4804.8,4804.6,3.673]
[1756077446681,0.7519,4804.7,4804.5,3.0]
[1756077446888,0.4426,4804.6,4804.5,3.0]
[1756077447089,0.7519,4804.6,4804.5,6.673]
[1756077447288,0.7519,4804.6,4804.5,8.75438203]
[1756077447605,0.104,4804.9,4804.8,2.08125208]
[1756077448106,0.44684346,4806.3,4805.1,2.08110101]
[1756077448107,0.4426,4805.6,4805.1,2.08110101]
[1756077448397,0.002,4805.6,4805.3,2.08099359]
[1756077448596,0.002,4805.6,4805.4,3.672]
[1756077448900,0.002,4805.6,4805.5,5.29704891]
[1756077451499,0.04,4806.4,4806.3,2.08060254]
[1756077451714,0.04,4806.4,4806.3,8.75260254]
[1756077452697,0.7919,4806.4,4806.3,6.671]
[1756077452865,0.8959,4806.4,4806.3,3.0]
[1756077453070,0.8979,4806.4,4806.3,3.0]
[1756077454097,0.8979,4806.4,4805.5,0.105]
[1756077454320,0.4426,4806.3,4805.6,3.671]
[1756077454487,0.4426,4806.3,4806.1,2.08065078]
[1756077454692,0.104,4806.2,4806.1,3.0]
[1756077455000,0.8559,4806.2,4806.1,3.0]
[1756077455512,0.4133,4806.2,4806.1,5.08068912]
[1756077455698,0.4133,4806.2,4806.1,3.0]
[1756077455895,0.8559,4806.2,4806.1,3.0]
[1756077456205,0.8559,4806.2,4806.1,5.08068912]
[1756077456525,0.104,4806.2,4806.1,5.08068912]
[1756077456686,0.104,4806.2,4806.1,5.78869823]
[1756077457190,0.042,4806.4,4806.3,2.08060254]
[1756077457381,0.146,4806.4,4806.2,8.75063743]
[1756077457578,0.146,4806.4,4806.2,6.67]
[1756077457815,0.7519,4806.3,4806.2,6.67]
[1756077458016,0.7519,4806.3,4806.0,3.67]
[1756077458176,0.4426,4806.2,4806.0,3.67]
[1756077458372,0.146,4806.4,4806.0,3.67]
[1756077458611,0.146,4806.4,4806.3,2.08060254]
[1756077458817,0.042,4806.4,4806.3,8.96570254]
[1756077460329,0.042,4806.4,4806.3,8.74960254]
[1756077460616,0.7939,4806.4,4806.3,6.669]
[1756077461016,0.7939,4806.4,4806.3,3.0]
[1756077461218,0.04,4807.4,4806.4,3.0]
[1756077461406,0.04,4807.4,4807.3,15.01409597]
[1756077464337,0.04,4807.4,4807.3,18.68209597]
[1756077464623,0.04,4807.4,4807.3,15.01409597]
[1756077465982,0.7845,4807.4,4807.2,3.668]
[1756077466329,0.7845,4807.4,4806.7,2.08042239]
[1756077466330,0.4365,4807.3,4806.7,2.08042239]
[1756077466498,0.308,4806.8,4806.7,2.0804294]
[1756077466829,0.4365,4807.1,4807.0,2.08029956]
[1756077467030,0.7445,4807.1,4806.9,2.08033748]
[1756077467198,0.4365,4807.0,4806.7,3.0]
[1756077467387,0.04,4807.4,4807.1,2.08025575]
[1756077467933,0.04,4807.4,4806.9,3.0]
[1756077467934,0.308,4807.2,4806.9,3.0]
[1756077468089,0.4365,4807.1,4806.7,3.0]
[1756077468290,0.308,4806.8,4806.5,3.0]
[1756077468528,0.4365,4806.7,4806.2,0.625449]
[1756077468731,0.308,4806.3,4806.2,5.70608479]
[1756077468933,0.7445,4806.3,4806.2,5.08063579]
[1756077469216,0.7445,4806.3,4805.9,16.60092623]
[1756077469418,0.4365,4806.2,4805.9,18.68169094]
[1756077469605,0.308,4806.0,4805.9,21.68169094]
[1756077469803,0.308,4806.0,4805.9,15.01469094]
[1756077470023,0.7445,4806.0,4805.6,0.62552]
[1756077470191,0.7445,4806.0,4805.5,0.001]
[1756077470192,0.4365,4805.9,4805.5,0.001]
[1756077470387,0.308,4805.6,4805.5,0.001]
[1756077471019,0.7445,4805.6,4805.5,0.001]
[1756077471224,0.8485,4805.6,4805.5,0.001]
[1756077471432,0.104,4805.6,4805.5,2.08193786]
[1756077471724,0.104,4805.6,4805.5,0.001]
[1756077472021,0.5405,4805.6,4805.5,2.08194891]
[1756077472198,0.104,4805.6,4805.5,2.08194891]
[1756077472593,0.104,4805.6,4805.5,0.001]
[1756077472801,0.104,4805.6,4805.5,7.09164867]
[1756077473723,0.104,4805.6,4805.5,10.75764867]
[1756077473922,0.104,4805.6,4805.5,8.96404891]
[1756077474219,0.104,4805.6,4805.5,8.74694891]
[1756077474422,0.104,4805.6,4805.5,9.74694891]
[1756077475232,0.412,4805.6,4805.5,9.74694891]
[1756077475400,0.8485,4805.6,4805.5,4.001]
[1756077475602,0.8485,4805.6,4805.5,9.74694891]
[1756077476302,0.8485,4805.6,4805.5,7.666]
[1756077476527,0.8485,4805.6,4805.5,9.74694891]
[1756077476693,0.8485,4805.6,4805.5,7.666]
[1756077477024,0.8485,4805.6,4805.5,9.74694891]
[1756077478224,0.8485,4805.6,4805.5,7.666]
[1756077478733,0.8485,4805.6,4805.5,9.74694891]
[1756077479027,0.8485,4805.6,4805.5,4.666]
[1756077479202,0.8485,4805.6,4805.5,6.74694891]
[1756077480442,0.8485,4805.6,4805.5,1.001]
[1756077481227,0.8485,4805.6,4805.5,3.08194891]
[1756077481507,0.8485,4805.6,4805.5,1.001]
[1756077481731,0.8485,4805.6,4805.5,3.08194891]
[1756077481926,0.8485,4805.6,4805.5,1.001]
[1756077482132,0.104,4805.6,4805.5,7.84475749]
[1756077482328,0.104,4805.6,4805.5,6.96204891]
[1756077482510,0.104,4805.6,4805.5,9.96204891]
[1756077482704,7.12899999,4806.4,4805.9,2.08075473]
[1756077482908,0.104,4806.0,4805.9,5.74477571]
[1756077483254,0.104,4806.0,4805.9,7.05163205]
[1756077483446,0.4365,4806.6,4806.3,2.08060254]
[1756077483447,0.104,4806.4,4806.3,2.08060254]
[1756077483648,0.104,4806.4,4806.3,5.74360254]
[1756077484331,0.104,4807.3,4807.2,2.08021301]
[1756077484530,0.104,4807.3,4807.0,3.663]
[1756077484929,0.104,4807.3,4807.1,2.08024446]
[1756077485132,0.7445,4807.2,4807.0,3.663]
[1756077485444,0.104,4807.3,4807.2,2.08021301]
[1756077486130,0.04,4807.4,4807.2,2.08021301]
[1756077486131,0.04,4807.4,4807.3,2.08016974]
[1756077486332,0.042,4807.4,4807.3,2.29626974]
[1756077486847,0.042,4807.4,4807.2,5.74320524]
[1756077487154,0.042,4807.4,4806.3,2.7059874]
[1756077487155,0.7865,4807.4,4806.6,2.08046909]
[1756077487335,0.4365,4807.3,4806.5,2.08151488]
[1756077487538,0.4365,4807.3,4806.5,0.001]
[1756077487850,0.042,4807.4,4807.0,2.08029956]
[1756077488167,0.4365,4807.3,4806.9,12.93392623]
[1756077488509,0.308,4807.0,4806.9,12.93392623]
[1756077488746,0.308,4807.0,4806.9,15.01426907]
[1756077489239,0.042,4807.4,4806.9,12.93392623]
[1756077489460,0.4365,4807.3,4806.9,12.93392623]
[1756077489861,0.042,4807.4,4806.9,18.62726986]
[1756077490063,0.042,4807.4,4807.3,2.08016974]
[1756077490265,0.042,4807.4,4807.3,8.95726974]
[1756077490570,0.042,4808.4,4807.9,2.07991014]
[1756077490752,0.4785,4808.4,4807.7,2.07998696]
[1756077490958,0.4785,4808.4,4807.6,3.661]
[1756077491132,0.4785,4808.4,4807.7,2.44607293]
[1756077491335,0.042,4808.4,4807.7,0.3661]
[1756077492074,0.042,4808.4,4807.8,2.07994647]
[1756077492251,0.042,4808.4,4807.7,0.3661]
[1756077492644,0.4665,4808.3,4807.7,0.3661]
[1756077493258,0.4665,4808.3,4807.8,2.07994073]
[1756077493654,0.4665,4808.2,4807.7,0.3661]
[1756077493859,0.042,4808.4,4807.7,2.44608071]
[1756077494041,0.4665,4808.1,4807.7,2.44608071]
[1756077494241,0.4665,4808.1,4807.7,0.3661]
[1756077494468,0.4665,4808.1,4807.7,2.44608742]
[1756077494682,0.4665,4808.1,4808.0,2.07986688]
[1756077494987,0.042,4808.4,4808.0,2.07986311]
[1756077495168,0.5085,4808.4,4808.0,2.07986311]
[1756077495343,0.4665,4808.3,4807.7,0.3661]
[1756077495547,0.4665,4808.3,4807.7,2.44608069]
[1756077495756,0.4665,4808.3,4808.0,2.07986435]
[1756077496272,0.4665,4808.3,4807.7,2.44608069]
[1756077496273,0.4665,4808.3,4807.9,2.07990805]
[1756077497042,0.104,4808.1,4807.9,2.07990805]
[1756077497546,0.104,4808.1,4807.7,0.3661]
[1756077497878,0.104,4808.1,4807.8,2.0799534]
[1756077498045,0.104,4808.1,4807.9,2.07988838]
[1756077498444,0.104,4808.1,4807.8,2.07994915]
[1756077498874,0.104,4808.1,4807.7,0.3661]
[1756077499071,0.104,4808.1,4807.7,2.44609202]
[1756077499242,0.104,4808.1,4807.9,2.07987465]
[1756077499664,0.104,4808.1,4808.0,2.07986688]
[1756077499891,0.042,4808.4,4808.0,2.29596688]
[1756077500092,0.104,4808.3,4808.2,2.07978037]
[1756077500579,0.104,4808.3,4807.7,3.3661]
[1756077500580,0.8632,4808.3,4807.7,3.3661]
[1756077500783,0.3967,4808.3,4807.6,3.0]
[1756077501079,0.104,4807.9,4806.6,3.658]
[1756077501280,0.104,4807.6,4806.7,0.104]
[1756077501592,0.104,4807.6,4807.3,2.08013003]
[1756077501796,0.104,4807.6,4807.4,2.08011694]
[1756077501964,0.104,4807.6,4807.0,3.658]
[1756077502160,0.104,4807.6,4807.1,2.08025096]
[1756077502362,0.104,4807.6,4806.8,2.08038057]
[1756077502680,0.104,4807.6,4806.8,7.1117242]
[1756077502874,0.104,4807.6,4807.3,2.0801606]
[1756077503275,0.104,4807.6,4806.9,3.0]
[1756077503476,0.104,4807.6,4806.8,5.03134363]
[1756077503997,0.104,4807.6,4807.2,2.08020157]